fUSD/lending_fUSD_20250702
["ID","MTS","AMOUNT","RATE_DAILY","PERIOD"]
[369091812,1751470367881,-433.4497488,0.00041,120]
[369091813,1751470367906,-2210.86397614,0.00041,120]
[369091814,1751470367932,-164.0,0.00041,90]
[369091815,1751470367958,-899.99999902,0.00041,42]
[369091816,1751470367984,-411.13787,0.00041088,30]
[369091817,1751470368009,-460.0,0.00041095,30]
[369091818,1751470368034,-460.0,0.00041095,30]
[369091819,1751470368059,-460.0,0.00041095,30]
[369091820,1751470368083,-172.30114743,0.00041095,30]
[369091821,1751470368109,-500.0,0.00041095,120]
[369091822,1751470368133,-500.0,0.00041095,120]
[369091823,1751470368157,-500.0,0.00041095,120]
[369091824,1751470368186,-500.0,0.00041095,120]
[369091825,1751470368211,-500.0,0.00041095,120]
[369091826,1751470368237,-500.0,0.00041095,120]
[369091827,1751470368264,-500.0,0.00041095,120]
[369091828,1751470368291,-500.0,0.00041095,120]
[369091829,1751470368316,-500.0,0.00041095,120]
[369091830,1751470368342,-500.0,0.00041095,120]
[369091831,1751470368367,-500.0,0.00041095,120]
[369091832,1751470368392,-432.96481346,0.00041095,120]
[369091833,1751470368417,-10000.0,0.00041095,120]
[369091834,1751470368443,-10000.0,0.00041095,120]
[369091835,1751470368470,-4271.5493314,0.00041095,120]
[369091836,1751470368495,-309.52001258,0.00041095,120]
[369091837,1751470368519,-602.54740676,0.00041095,30]
[369091838,1751470368546,-999.0,0.00041095,120]
[369091839,1751470368572,-4000.0,0.00041096,30]
[369091840,1751470368597,-500.0,0.00041096,30]
[369091841,1751470368623,-500.0,0.00041096,30]
[369091842,1751470368658,-500.0,0.00041096,30]
[369091843,1751470368684,-500.0,0.00041096,30]
[369091844,1751470368716,-500.0,0.00041096,30]
[369091845,1751470368754,-500.0,0.00041096,30]
[369091846,1751470368784,-500.0,0.00041096,30]
[369091847,1751470368812,-500.0,0.00041096,30]
[369091848,1751470368838,-500.0,0.00041096,30]
[369091849,1751470368862,-500.0,0.00041096,30]
[369091850,1751470368886,-500.0,0.00041096,30]
[369091851,1751470368913,-500.0,0.00041096,30]
[369091852,1751470368938,-500.0,0.00041096,30]
[369091853,1751470368965,-500.0,0.00041096,30]
[369091854,1751470368991,-500.0,0.00041096,30]
[369091855,1751470369016,-500.0,0.00041096,30]
[369091856,1751470369277,-500.0,0.00041096,30]
[369091857,1751470369302,-500.0,0.00041096,30]
[369091858,1751470369326,-500.0,0.00041096,30]
[369091859,1751470369349,-500.0,0.00041096,30]
[369091860,1751470369374,-500.0,0.00041096,30]
[369091861,1751470369397,-500.0,0.00041096,30]
[369091862,1751470369421,-500.0,0.00041096,30]
[369091863,1751470369445,-500.0,0.00041096,30]
[369091864,1751470369469,-500.0,0.00041096,30]
[369091865,1751470369493,-500.0,0.00041096,30]
[369091866,1751470369517,-500.0,0.00041096,30]
[369091867,1751470369540,-500.0,0.00041096,30]
[369091868,1751470369564,-500.0,0.00041096,30]
[369091869,1751470369589,-500.0,0.00041096,30]
[369091870,1751470369612,-500.0,0.00041096,30]
[369091871,1751470369638,-500.0,0.00041096,30]
[369091872,1751470369661,-500.0,0.00041096,30]
[369091873,1751470369684,-500.0,0.00041096,30]
[369091874,1751470369708,-500.0,0.00041096,30]
[369091875,1751470369732,-500.0,0.00041096,30]
[369091876,1751470369755,-500.0,0.00041096,30]
[369091877,1751470369778,-500.0,0.00041096,30]
[369091878,1751470369802,-500.0,0.00041096,30]
[369091879,1751470369824,-500.0,0.00041096,30]
[369091880,1751470369848,-500.0,0.00041096,30]
[369091881,1751470369870,-500.0,0.00041096,30]
[369091882,1751470369893,-500.0,0.00041096,30]
[369091883,1751470369916,-500.0,0.00041096,30]
[369091884,1751470369941,-500.0,0.00041096,30]
[369091885,1751470369964,-500.0,0.00041096,30]
[369091886,1751470369988,-500.0,0.00041096,30]
[369091887,1751470370012,-500.0,0.00041096,30]
[369091888,1751470370035,-500.0,0.00041096,30]
[369091889,1751470370058,-500.0,0.00041096,30]
[369091890,1751470370081,-500.0,0.00041096,30]
[369091891,1751470370105,-500.0,0.00041096,30]
[369091892,1751470370128,-500.0,0.00041096,30]
[369091893,1751470370152,-500.0,0.00041096,30]
[369091894,1751470370176,-500.0,0.00041096,30]
[369091895,1751470370199,-500.0,0.00041096,30]
[369091896,1751470370223,-500.0,0.00041096,30]
[369091897,1751470370246,-500.0,0.00041096,30]
[369091898,1751470370271,-500.0,0.00041096,30]
[369091899,1751470370294,-500.0,0.00041096,30]
[369091900,1751470370317,-500.0,0.00041096,30]
[369091901,1751470370341,-500.0,0.00041096,30]
[369091902,1751470370367,-500.0,0.00041096,30]
[369091903,1751470370392,-500.0,0.00041096,30]
[369091904,1751470370416,-500.0,0.00041096,30]
[369091905,1751470370440,-500.0,0.00041096,30]
[369091906,1751470370465,-385.0,0.00041096,30]
[369091907,1751470370491,-500.0,0.00041096,30]
[369091908,1751470370516,-500.0,0.00041096,30]
[369091909,1751470370540,-531.7299775,0.00041096,31]
[369091910,1751470370564,-158.00563186,0.000411,120]
[369091911,1751470370588,-158.00563186,0.000411,120]
[369091912,1751470370612,-158.00563186,0.000411,120]
[369091913,1751470370638,-158.00563186,0.000411,120]
[369091914,1751470370661,-158.00563186,0.000411,120]
[369091915,1751470370686,-158.0,0.000411,120]
[369091916,1751470370710,-163.96274398,0.000411,120]
[369091917,1751470370734,-163.96274398,0.000411,120]
[369091918,1751470370759,-163.96274398,0.000411,120]
[369091919,1751470370784,-163.96,0.000411,120]
[369091920,1751470370810,-206.42145787,0.000411,120]
[369091921,1751470370835,-206.42,0.000411,120]
[369091922,1751470370858,-1324.6226858,0.00041111,120]
[369091923,1751470370882,-178.0,0.000412,120]
[369091924,1751470370906,-411.13787,0.00041288,30]
[369091925,1751470370929,-300.0,0.00041356,30]
[369091926,1751470370953,-342.52,0.00041356,30]
[369091927,1751470370977,-150.76,0.00041356,30]
[369091928,1751470371001,-150.0,0.00041356,30]
[369091929,1751470371025,-478.32,0.00041356,30]
[369091930,1751470371049,-163.98,0.00041356,30]
[369091931,1751470371073,-456.54,0.00041356,30]
[369091932,1751470371097,-163.98,0.00041356,30]
[369091933,1751470371123,-334.0,0.0004137,60]
[369091934,1751470371147,-334.0,0.0004137,60]
[369091935,1751470371172,-334.0,0.0004137,60]
[369091936,1751470371196,-334.0,0.0004137,60]
[369091937,1751470371222,-334.0,0.0004137,60]
[369091938,1751470371246,-334.0,0.0004137,60]
[369091939,1751470371271,-334.0,0.0004137,60]
[369091940,1751470371295,-334.0,0.0004137,60]
[369091941,1751470371318,-334.0,0.0004137,60]
[369091942,1751470371342,-334.0,0.0004137,60]
[369091943,1751470371366,-334.0,0.0004137,60]
[369091944,1751470371390,-334.0,0.0004137,60]
[369091945,1751470371415,-334.0,0.0004137,60]
[369091946,1751470371439,-334.0,0.0004137,60]
[369091947,1751470371463,-153.0,0.0004137,60]
[369091948,1751470371488,-153.0,0.0004137,60]
[369091949,1751470371512,-153.0,0.0004137,60]
[369091950,1751470371536,-153.0,0.0004137,60]
[369091951,1751470371560,-153.0,0.0004137,60]
[369091952,1751470371586,-153.0,0.0004137,60]
[369091953,1751470371611,-153.0,0.0004137,60]
[369091954,1751470371641,-153.0,0.0004137,60]
[369091955,1751470371666,-153.0,0.0004137,60]
[369091956,1751470371690,-153.0,0.0004137,60]
[369091957,1751470371715,-153.0,0.0004137,60]
[369091958,1751470371741,-153.0,0.0004137,60]
[369091959,1751470371766,-411.13787,0.00041488,30]
[369091960,1751470371792,-3000.0,0.00041508,60]
[369091961,1751470371816,-411.13787,0.00041688,30]
[369091962,1751470371841,-150.0,0.00041796,30]
[369091963,1751470371865,-156.41511293,0.00041796,30]
[369091964,1751470371889,-150.0,0.00041796,30]
[369091965,1751470371915,-150.0,0.00041796,30]
[369091966,1751470371940,-150.0,0.00041796,30]
[369091967,1751470371964,-235.64928677,0.00041796,30]
[369091968,1751470371992,-150.0,0.00041796,30]
[369091969,1751470372016,-269.35742767,0.00041796,30]
[369091970,1751470372042,-150.0,0.00041796,30]
[369091971,1751470372067,-150.0,0.00041796,30]
[369091972,1751470372091,-173.21244498,0.00041796,30]
[369091973,1751470372116,-150.0,0.00041796,30]
[369091974,1751470372140,-150.0,0.00041796,30]
[369091975,1751470372164,-236.42876228,0.00041796,30]
[369091976,1751470372189,-150.0,0.00041796,30]
[369091977,1751470372213,-1000.0,0.000418,120]
[369091978,1751470372241,-1640.40000103,0.000418,120]
[369091979,1751470372265,-150.0,0.00041857,30]
[369091980,1751470372291,-150.0,0.00041873,30]
[369091981,1751470372315,-411.13787,0.00041888,30]
[369091982,1751470372338,-150.0,0.00041951,30]
[369091983,1751470372364,-1000.0,0.00042,120]
[369091984,1751470372387,-300.51136579,0.00042,120]
[369091985,1751470372411,-977.11601365,0.00042,30]
[369091986,1751470372434,-801.62086666,0.00042,30]
[369091987,1751470372459,-364.86947302,0.00042,30]
[369091988,1751470372708,-101466.0,0.00042,120]
[369091989,1751470372735,-1115.1267312,0.00042,120]
[369091990,1751470372760,-400.0,0.00042,120]
[369091991,1751470372783,-2000.0,0.00042,120]
[369091992,1751470372810,-1062.69412844,0.00042,120]
[369091993,1751470372839,-150.0,0.00042028,30]
[369091994,1751470372864,-152.0,0.00042033,31]
[369091995,1751470372889,-3000.0,0.00042056,60]
[369091996,1751470372918,-181.44,0.00042064,120]
[369091997,1751470372943,-150.0,0.00042106,30]
[369091998,1751470372968,-456.54,0.00042178,30]
[369091999,1751470372994,-163.71,0.00042178,30]
[369092000,1751470373019,-150.0,0.00042183,30]
[369092001,1751470373042,-396.39,0.00042195,30]
[369092002,1751470373067,-4500.0,0.000422,120]
[369092003,1751470373091,-150.0,0.0004226,30]
[369092004,1751470373114,-846.95932926,0.00042269,30]
[369092005,1751470373139,-150.0,0.00042285,30]
[369092006,1751470373162,-152.0,0.000423,120]
[369092007,1751470373186,-150.0,0.00042338,30]
[369092008,1751470373209,-150.0,0.00042377,30]
[369092009,1751470373234,-1499.56145474,0.000424,120]
[369092010,1751470373259,-150.0,0.00042407,30]
[369092011,1751470373283,-150.0,0.00042415,30]
[369092012,1751470373309,-999.0,0.00042465,120]
[369092013,1751470373338,-150.0,0.00042468,30]
[369092014,1751470373363,-150.0,0.00042493,30]
[369092015,1751470373386,-200.0,0.00042499,120]
[369092016,1751470373411,-17748.89602513,0.000425,120]
[369092017,1751470373435,-150.0,0.00042529,30]
[369092018,1751470373458,-152.0,0.00042536,31]
[369092019,1751470373483,-150.0,0.0004257,30]
[369092020,1751470373508,-150.0,0.0004257,30]
[369092021,1751470373533,-150.0,0.0004257,30]
[369092022,1751470373558,-150.0,0.0004257,30]
[369092023,1751470373582,-150.0,0.0004259,30]
[369092024,1751470373606,-3000.0,0.00042604,60]
[369092025,1751470373634,-500.0,0.00042604,60]
[369092026,1751470373658,-600.0,0.00042604,60]
[369092027,1751470373683,-150.0,0.00042647,30]
[369092028,1751470373709,-150.0,0.00042651,30]
[369092029,1751470373737,-150.0,0.00042713,30]
[369092030,1751470373762,-150.0,0.00042725,30]
[369092031,1751470373786,-150.0,0.00042774,30]
[369092032,1751470373810,-150.0,0.00042802,30]
[369092033,1751470373835,-150.0,0.00042835,30]
[369092034,1751470373859,-150.0,0.0004288,30]
[369092035,1751470373883,-150.0,0.00042896,30]
[369092036,1751470373910,-1000.0,0.000429,120]
[369092037,1751470373935,-130013.22277347,0.000429,120]
[369092038,1751470373961,-150.0,0.00042957,30]
[369092039,1751470373988,-150.0,0.00042957,30]
[369092040,1751470374013,-150.0,0.00042957,30]
[369092041,1751470374036,-150.0,0.00042957,30]
[369092042,1751470374061,-891481.98383334,0.0004299,60]
[369092043,1751470374088,-2161.86980685,0.00043,30]
[369092044,1751470374113,-1000.0,0.00043,120]
[369092045,1751470374138,-663.74974566,0.00043,120]
[369092046,1751470374163,-477.51979486,0.00043,120]
[369092047,1751470374187,-274.13800022,0.00043,120]
[369092048,1751470374213,-210.47954847,0.00043,120]
[369092049,1751470374240,-18809.94485065,0.00043,120]
[369092050,1751470374267,-400.0,0.00043,30]
[369092051,1751470374293,-665540.81,0.00043,60]
[369092052,1751470374318,-10000.0,0.00043,120]
[369092053,1751470374342,-217.7,0.00043,120]
[369092054,1751470374368,-150.0,0.00043018,30]
[369092055,1751470374393,-150.0,0.00043034,30]
[369092056,1751470374417,-152.0,0.0004304,31]
[369092057,1751470374443,-150.0,0.00043079,30]
[369092058,1751470374468,-150.0,0.00043112,30]
[369092059,1751470374495,-150.0,0.0004314,30]
[369092060,1751470374520,-164.0,0.00043151,90]
[369092061,1751470374545,-3000.0,0.00043152,60]
[369092062,1751470374570,-600.0,0.00043152,60]
[369092063,1751470374595,-150.0,0.00043189,30]
[369092064,1751470374622,-150.0,0.00043201,30]
[369092065,1751470374650,-150.0,0.00043263,30]
[369092066,1751470374675,-150.0,0.00043267,30]
[369092067,1751470374698,-1059.60504099,0.0004329,120]
[369092068,1751470374727,-150.0,0.00043324,30]
[369092069,1751470374752,-150.0,0.00043344,30]
[369092070,1751470374776,-150.0,0.00043344,30]
[369092071,1751470374801,-150.0,0.00043344,30]
[369092072,1751470374825,-150.0,0.00043344,30]
[369092073,1751470374850,-150.0,0.00043385,30]
[369092074,1751470374878,-150.0,0.00043421,30]
[369092075,1751470374911,-150.0,0.00043446,30]
[369092076,1751470374937,-150.0,0.00043499,30]
[369092077,1751470374964,-150.0,0.00043507,30]
[369092078,1751470374990,-150.0,0.00043538,30]
[369092079,1751470375016,-152.0,0.00043544,31]
[369092080,1751470375041,-150.0,0.00043568,30]
[369092081,1751470375065,-150.0,0.00043576,30]
[369092082,1751470375089,-969.81994296,0.000436,120]
[369092083,1751470375114,-150.0,0.00043609,30]
[369092084,1751470375140,-3264.00414993,0.00043609,30]
[369092085,1751470375164,-150.0,0.00043629,30]
[369092086,1751470375192,-150.0,0.00043654,30]
[369092087,1751470375218,-150.0,0.0004369,30]
[369092088,1751470375244,-3000.0,0.000437,60]
[369092089,1751470375268,-194764.74650414,0.000437,120]
[369092090,1751470375292,-600.0,0.000437,60]
[369092091,1751470375317,-500.0,0.000437,60]
[369092092,1751470375341,-150.0,0.00043731,30]
[369092093,1751470375366,-150.0,0.00043751,30]
[369092094,1751470375390,-484.10571915,0.000438,30]
[369092095,1751470375415,-17425.22440746,0.000438,120]
[369092096,1751470375439,-55651.31766974,0.000438,120]
[369092097,1751470375463,-150.0,0.00043808,30]
[369092098,1751470375488,-150.0,0.00043812,30]
[369092099,1751470375512,-280.0190608,0.00043835,60]
[369092100,1751470375538,-5824.02,0.00043835,120]
[369092101,1751470375561,-500.0,0.00043835,120]
[369092102,1751470375588,-999.0,0.00043835,120]
[369092103,1751470375612,-500.0,0.00043835,120]
[369092104,1751470375637,-500.0,0.00043836,32]
[369092105,1751470375663,-150.0,0.00043874,30]
[369092106,1751470375687,-150.0,0.00043886,30]
[369092107,1751470375712,-150.0,0.00043935,30]
[369092108,1751470375736,-150.0,0.00043963,30]
[369092109,1751470375761,-150.0,0.00043996,30]
[369092110,1751470375785,-200.0,0.00043999,120]
[369092111,1751470375809,-243.82,0.00044,120]
[369092112,1751470375834,-1000.0,0.00044,120]
[369092113,1751470375858,-91950.0968994,0.00044,120]
[369092114,1751470375881,-400857.12616444,0.00044,120]
[369092115,1751470375907,-400.0,0.00044,120]
[369092116,1751470375932,-531.832438,0.00044,57]
[369092117,1751470375956,-251.38828644,0.00044,120]
[369092118,1751470375980,-150.0,0.00044041,30]
[369092119,1751470376243,-152.0,0.00044047,31]
[369092120,1751470376270,-150.0,0.00044057,30]
[369092121,1751470376297,-5824.02,0.00044109,120]
[369092122,1751470376322,-500.0,0.00044109,120]
[369092123,1751470376346,-485.56667754,0.00044109,120]
[369092124,1751470376370,-150.0,0.00044118,30]
[369092125,1751470376394,-150.0,0.00044118,30]
[369092126,1751470376418,-150.0,0.00044118,30]
[369092127,1751470376442,-150.0,0.00044118,30]
[369092128,1751470376466,-150.0,0.00044118,30]
[369092129,1751470376491,-150.0,0.00044118,30]
[369092130,1751470376515,-150.0,0.00044118,30]
[369092131,1751470376540,-150.0,0.00044179,30]
[369092132,1751470376567,-150.0,0.00044195,30]
[369092133,1751470376590,-10000.0,0.00044233,120]
[369092134,1751470376614,-150.0,0.0004424,30]
[369092135,1751470376642,-3000.0,0.00044248,120]
[369092136,1751470376666,-600.0,0.00044248,120]
[369092137,1751470376690,-150.0,0.00044273,30]
[369092138,1751470376716,-40005.51030071,0.000443,120]
[369092139,1751470376741,-150.0,0.00044301,30]
[369092140,1751470376765,-150.0,0.0004435,30]
[369092141,1751470376790,-150.0,0.00044362,30]
[369092142,1751470376818,-5824.02,0.00044383,120]
[369092143,1751470376842,-500.0,0.00044383,120]
[369092144,1751470376866,-150.0,0.00044424,30]
[369092145,1751470376893,-150.0,0.00044428,30]
[369092146,1751470376918,-150.0,0.00044485,30]
[369092147,1751470376943,-1081.0,0.00044493,30]
[369092148,1751470376968,-150.0,0.00044505,30]
[369092149,1751470376995,-600.0,0.00044522,120]
[369092150,1751470377020,-150.0,0.00044546,30]
[369092151,1751470377045,-152.0,0.00044551,31]
[369092152,1751470377069,-174.21761,0.00044582,30]
[369092153,1751470377094,-150.0,0.00044582,30]
[369092154,1751470377118,-150.0,0.00044607,30]
[369092155,1751470377143,-504.38450755,0.00044635,30]
[369092156,1751470377170,-5824.02,0.00044657,120]
[369092157,1751470377195,-500.0,0.00044657,120]
[369092158,1751470377219,-150.0,0.0004466,30]
[369092159,1751470377245,-150.0,0.00044668,30]
[369092160,1751470377270,-367.40285942,0.00044676,120]
[369092161,1751470377294,-150.0,0.00044699,30]
[369092162,1751470377318,-331.26,0.00044699,30]
[369092163,1751470377342,-345.65,0.00044699,30]
[369092164,1751470377366,-300.0,0.00044699,30]
[369092165,1751470377391,-150.0,0.00044729,30]
[369092166,1751470377415,-150.0,0.00044737,30]
[369092167,1751470377438,-150.0,0.0004479,30]
[369092168,1751470377463,-3000.0,0.00044796,120]
[369092169,1751470377489,-600.0,0.00044796,120]
[369092170,1751470377514,-500.0,0.00044796,120]
[369092171,1751470377540,-3000.0,0.000448,90]
[369092172,1751470377565,-150.0,0.00044815,30]
[369092173,1751470377589,-150.0,0.00044851,30]
[369092174,1751470377613,-150.0,0.00044892,30]
[369092175,1751470377640,-150.0,0.00044892,30]
[369092176,1751470377664,-150.0,0.00044892,30]
[369092177,1751470377689,-150.0,0.00044892,30]
[369092178,1751470377713,-1122.47321543,0.000449,30]
[369092179,1751470377741,-1457.14631387,0.000449,120]
[369092180,1751470377766,-2667.0,0.000449,120]
[369092181,1751470377791,-150.0,0.00044912,30]
[369092182,1751470377820,-5824.02,0.00044931,120]
[369092183,1751470377843,-500.0,0.00044931,120]
[369092184,1751470377867,-150.0,0.00044969,30]
[369092185,1751470377892,-150.0,0.00044973,30]
[369092186,1751470377917,-800.0,0.00044987,60]
[369092187,1751470377944,-50000.0,0.00045,45]
[369092188,1751470377970,-162.7,0.00045,85]
[369092189,1751470377999,-7008.0,0.00045,60]
[369092190,1751470378023,-525.32579805,0.00045,120]
[369092191,1751470378047,-226.2270709,0.00045,60]
[369092192,1751470378072,-669.78910782,0.00045,120]
[369092193,1751470378097,-246.86332785,0.00045,120]
[369092194,1751470378122,-594.39882539,0.00045,120]
[369092195,1751470378148,-1618.02651571,0.00045,120]
[369092196,1751470378173,-1082.93180288,0.00045,32]
[369092197,1751470378197,-177.26917238,0.00045,120]
[369092198,1751470378221,-168.55673735,0.00045,120]
[369092199,1751470378256,-285.27921213,0.00045,120]
[369092200,1751470378282,-1078.81139477,0.00045,30]
[369092201,1751470378308,-442487.19840521,0.00045,120]
[369092202,1751470391933,-346.0390039,0.000372,120]
[369092203,1751470391965,-346.0390039,0.000372,120]
[369092204,1751470392015,-500.0,0.00039999,31]
[369092205,1751470392044,-354.4614891,0.00039999,31]
[369092206,1751470392074,-500.0,0.00039999,31]
[369092207,1751470392102,-500.0,0.00039999,31]
[369092208,1751470392132,-500.0,0.00039999,31]
[369092209,1751470392159,-500.0,0.00039999,31]
[369092210,1751470392187,-500.0,0.00039999,31]
[369092211,1751470392217,-460.79399492,0.00039999,31]
[369092212,1751470392247,-500.0,0.00039999,31]
[369092213,1751470392275,-500.0,0.00039999,31]
[369092214,1751470392303,-500.0,0.00039999,31]
[369092215,1751470392332,-500.0,0.00039999,31]
[369092216,1751470392357,-500.0,0.00039999,31]
[369092217,1751470392382,-561.94790547,0.00039999,31]
[369092218,1751470392407,-500.0,0.00039999,31]
[369092219,1751470392433,-500.0,0.00039999,31]
[369092220,1751470392458,-500.0,0.00039999,31]
[369092221,1751470392484,-500.0,0.00039999,31]
[369092222,1751470392511,-357.22886146,0.00039999,31]
[369092223,1751470392534,-265.21646099,0.00039999,31]
[369092224,1751470392562,-412.43842318,0.00039999,31]
[369092225,1751470392587,-407.16651601,0.00039999,31]
[369092226,1751470392611,-414.46172009,0.00039999,31]
[369092227,1751470392640,-500.0,0.00039999,31]
[369092228,1751470392664,-500.0,0.00039999,31]
[369092229,1751470392691,-334.37934511,0.00039999,31]
[369092230,1751470392716,-192.20664286,0.00039999,31]
[369092231,1751470392744,-500.0,0.00039999,31]
[369092232,1751470392773,-996.0,0.00041096,30]
[369092233,1751470392799,-334.0,0.0004137,60]
[369092234,1751470392825,-334.0,0.0004137,60]
[369092235,1751470392852,-334.0,0.0004137,60]
[369092236,1751470392877,-334.0,0.0004137,60]
[369092237,1751470392903,-334.0,0.0004137,60]
[369092238,1751470392928,-334.0,0.0004137,60]
[369092239,1751470392955,-334.0,0.0004137,60]
[369092240,1751470392983,-334.0,0.0004137,60]
[369092241,1751470393011,-334.0,0.0004137,60]
[369092242,1751470393036,-334.0,0.0004137,60]
[369092243,1751470393062,-334.0,0.0004137,60]
[369092244,1751470393087,-334.0,0.0004137,60]
[369092245,1751470393111,-334.0,0.0004137,60]
[369092246,1751470393137,-334.0,0.0004137,60]
[369092247,1751470393162,-153.0,0.0004137,60]
[369092248,1751470393186,-153.0,0.0004137,60]
[369092249,1751470393211,-153.0,0.0004137,60]
[369092250,1751470393236,-153.0,0.0004137,60]
[369092251,1751470393263,-153.0,0.0004137,60]
[369092252,1751470393288,-153.0,0.0004137,60]
[369092253,1751470393314,-153.0,0.0004137,60]
[369092254,1751470393340,-153.0,0.0004137,60]
[369092255,1751470393367,-153.0,0.0004137,60]
[369092256,1751470393393,-153.0,0.0004137,60]
[369092257,1751470393421,-153.0,0.0004137,60]
[369092258,1751470393448,-153.0,0.0004137,60]
[369092259,1751470393477,-5099.0,0.00043836,30]
[369092260,1751470393504,-242.9,0.000445,120]
[369092261,1751470393532,-557512.80159479,0.00045,120]
[369092262,1751470393557,-1000000.0,0.00045,120]
[369092263,1751470393582,-92098.48209151,0.00045,120]
[369092264,1751470393606,-1000000.0,0.00045,120]
[369092265,1751470393632,-1000.0,0.00045,120]
[369092266,1751470393664,-1000.0,0.00045,120]
[369092267,1751470393691,-1000.0,0.00045,120]
[369092268,1751470393717,-1000.0,0.00045,120]
[369092269,1751470393744,-1000.0,0.00045,120]
[369092270,1751470393768,-26754.87980567,0.00045,120]
[369092271,1751470393794,-1000000.0,0.00045,120]
[369092272,1751470393821,-292331.55714104,0.00045,120]
[369092273,1751470398027,-6005.66,0.000445,120]
[369092274,1751470398057,-707668.44285896,0.00045,120]
[369092275,1751470398085,-1000000.0,0.00045,120]
[369092276,1751470398116,-1000000.0,0.00045,120]
[369092277,1751470398144,-2000.0,0.00045,120]
[369092278,1751470398172,-6931.0,0.00045,120]
[369092279,1751470398199,-10000.0,0.00045,120]
[369092280,1751470398227,-1532.9240834,0.00045,90]
[369092281,1751470398255,-830000.0,0.00045,120]
[369092282,1751470398282,-1000.0,0.00045,120]
[369092283,1751470398310,-10000.0,0.00045,120]
[369092284,1751470398336,-299600.0,0.00045,120]
[369092285,1751470398361,-10000.0,0.00045,120]
[369092286,1751470398388,-1999.99999602,0.00045,120]
[369092287,1751470398415,-245.0,0.00045,120]
[369092288,1751470398442,-150.0,0.00045,120]
[369092289,1751470398469,-10000.0,0.00045,120]
[369092290,1751470398497,-6818.02044093,0.00045,120]
[369092291,1751470398882,-150.0,0.00045035,30]
[369092292,1751470398908,-150.0,0.00045047,30]
[369092293,1751470398936,-150.0,0.00045096,30]
[369092294,1751470398964,-150.0,0.00045124,30]
[369092295,1751470398993,-150.0,0.00045157,30]
[369092296,1751470399025,-150.0,0.00045202,30]
[369092297,1751470399057,-999.0,0.00045205,120]
[369092298,1751470399086,-150.0,0.00045218,30]
[369092299,1751470399115,-93999.95262069,0.0004525,120]
[369092300,1751470410544,-240.64384797,0.000445,120]
[369092301,1751470410570,-6006.91,0.000445,120]
[369092302,1751470410597,-906000.04737931,0.0004525,120]
[369092303,1751470410623,-1000000.0,0.0004525,120]
[369092304,1751470410650,-3000.0,0.00045344,120]
[369092305,1751470410674,-600.0,0.00045344,120]
[369092306,1751470410700,-500.0,0.00045344,120]
[369092307,1751470410723,-3323.20263661,0.000454,120]
[369092308,1751470410749,-10000.0,0.00045467,120]
[369092309,1751470410774,-1000000.0,0.000455,120]
[369092310,1751470410798,-1000000.0,0.000455,120]
[369092311,1751470410823,-10000.0,0.000456,120]